[Event "Early-Titled-Tuesday-Blitz-April-23-2024"]
[Site "Chess.com"]
[Date "2024.04.23"]
[Round "11"]
[White "emeli_chess"]
[Black "Thebigsqueeze"]
[Result "0-1"]
[WhiteElo "2453"]
[BlackElo "2332"]
[TimeControl "180+1"]
[EndTime "10:10:20 PDT"]
[Termination "Thebigsqueeze won by resignation"]

1. d4 {[%clk 0:03:00.9]} 1... Nf6 {[%clk 0:02:59.2]} 2. c4 {[%clk 0:03:01]} 2...
c5 {[%clk 0:02:59]} 3. d5 {[%clk 0:03:00.7]} 3... b5 {[%clk 0:02:59.5]} 4. cxb5
{[%clk 0:03:01.1]} 4... a6 {[%clk 0:02:59.3]} 5. b6 {[%clk 0:03:01.7]} 5... Qxb6
{[%clk 0:02:58.8]} 6. Nc3 {[%clk 0:03:02.6]} 6... d6 {[%clk 0:02:59]} 7. a4
{[%clk 0:03:02.8]} 7... g6 {[%clk 0:02:58.9]} 8. a5 {[%clk 0:03:03]} 8... Qb7
{[%clk 0:02:51.1]} 9. e4 {[%clk 0:03:02.9]} 9... Bd7 {[%clk 0:02:50]} 10. Nf3
{[%clk 0:03:00.5]} 10... Bb5 {[%clk 0:02:49.4]} 11. Be2 {[%clk 0:02:57]} 11...
Bg7 {[%clk 0:02:44.9]} 12. O-O {[%clk 0:02:56.2]} 12... O-O {[%clk 0:02:44.3]}
13. Re1 {[%clk 0:02:54.9]} 13... Nbd7 {[%clk 0:02:41.8]} 14. Bg5 {[%clk
0:02:38.6]} 14... Rfb8 {[%clk 0:02:39.1]} 15. Ra3 {[%clk 0:02:29.1]} 15... Kf8
{[%clk 0:02:14.5]} 16. Qc1 {[%clk 0:02:24]} 16... Ng4 {[%clk 0:02:03]} 17. Bd1
{[%clk 0:01:54.4]} 17... Nge5 {[%clk 0:02:00.3]} 18. Nxb5 {[%clk 0:01:32]} 18...
Qxb5 {[%clk 0:01:50.5]} 19. b3 {[%clk 0:01:16.5]} 19... Nd3 {[%clk 0:01:27.1]}
20. Be2 {[%clk 0:01:16.7]} 20... Nxc1 {[%clk 0:01:26.9]} 21. Bxb5 {[%clk
0:01:16.9]} 21... Rxb5 {[%clk 0:01:27]} 22. Rxc1 {[%clk 0:01:16.7]} 22... Bb2
{[%clk 0:01:27.2]} 23. Rca1 {[%clk 0:01:15.2]} 23... Bxa1 {[%clk 0:01:25.7]} 24.
Rxa1 {[%clk 0:01:15.1]} 24... Rxb3 {[%clk 0:01:25.4]} 25. Nd2 {[%clk 0:01:13.5]}
25... Rb4 {[%clk 0:01:23.6]} 26. f3 {[%clk 0:01:13.4]} 26... Rab8 {[%clk
0:01:22.9]} 27. Rc1 {[%clk 0:01:09.8]} 27... Ne5 {[%clk 0:01:19.2]} 28. h4
{[%clk 0:01:05.6]} 28... R8b5 {[%clk 0:01:16.2]} 29. h5 {[%clk 0:01:02.9]} 29...
gxh5 {[%clk 0:01:15]} 30. f4 {[%clk 0:01:01.8]} 30... Ng4 {[%clk 0:01:13]} 31.
f5 {[%clk 0:01:00.6]} 31... f6 {[%clk 0:01:12.2]} 32. Bf4 {[%clk 0:00:58.5]}
32... Rxa5 {[%clk 0:01:09.3]} 33. Nf3 {[%clk 0:00:56.3]} 33... Ra2 {[%clk
0:01:05.2]} 34. Bd2 {[%clk 0:00:52]} 34... Rbb2 {[%clk 0:01:02.5]} 35. Rd1
{[%clk 0:00:47.3]} 35... a5 {[%clk 0:01:01.4]} 36. Kf1 {[%clk 0:00:43.4]} 36...
a4 {[%clk 0:00:57.4]} 37. Ke2 {[%clk 0:00:43.4]} 37... a3 {[%clk 0:00:55.2]} 38.
Rc1 {[%clk 0:00:43.3]} 38... Ne5 {[%clk 0:00:49.2]} 0-1

[Event "Early-Titled-Tuesday-Blitz-April-23-2024"]
[Site "Chess.com"]
[Date "2024.04.23"]
[Round "11"]
[White "FischerKasparow"]
[Black "C_K_G"]
[Result "0-1"]
[WhiteElo "2108"]
[BlackElo "2292"]
[TimeControl "180+1"]
[EndTime "10:10:22 PDT"]
[Termination "C_K_G won by checkmate"]

1. e4 {[%clk 0:03:00.9]} 1... c5 {[%clk 0:02:59.7]} 2. Nf3 {[%clk 0:02:59.7]}
2... d6 {[%clk 0:03:00.2]} 3. d4 {[%clk 0:02:59.4]} 3... cxd4 {[%clk 0:03:01.1]}
4. Nxd4 {[%clk 0:02:59.7]} 4... Nf6 {[%clk 0:03:02]} 5. Nc3 {[%clk 0:02:59.8]}
5... a6 {[%clk 0:03:02.9]} 6. a4 {[%clk 0:02:59.4]} 6... e6 {[%clk 0:03:03.8]}
7. Be2 {[%clk 0:02:57.8]} 7... Be7 {[%clk 0:03:04.7]} 8. O-O {[%clk 0:02:57.8]}
8... O-O {[%clk 0:03:05.3]} 9. f4 {[%clk 0:02:56.2]} 9... b6 {[%clk 0:03:05.3]}
10. Kh1 {[%clk 0:02:55.2]} 10... Bb7 {[%clk 0:03:05.8]} 11. Bd3 {[%clk
0:02:55.1]} 11... Nbd7 {[%clk 0:03:05.5]} 12. Be3 {[%clk 0:02:48]} 12... Nc5
{[%clk 0:02:57.7]} 13. e5 {[%clk 0:02:41.6]} 13... dxe5 {[%clk 0:02:52.8]} 14.
fxe5 {[%clk 0:02:41.1]} 14... Nd5 {[%clk 0:02:49.3]} 15. Nxd5 {[%clk 0:02:12.3]}
15... Qxd5 {[%clk 0:02:43.8]} 16. Nf3 {[%clk 0:02:05.8]} 16... Rad8 {[%clk
0:02:28.7]} 17. Qe2 {[%clk 0:01:48.5]} 17... Nxd3 {[%clk 0:02:27.7]} 18. cxd3
{[%clk 0:01:47.5]} 18... Qxd3 {[%clk 0:02:25.1]} 19. Qxd3 {[%clk 0:01:46.7]}
19... Rxd3 {[%clk 0:02:26]} 20. Bxb6 {[%clk 0:01:46.7]} 20... Rb3 {[%clk
0:02:25.7]} 21. Bd4 {[%clk 0:01:41.5]} 21... Rd8 {[%clk 0:02:24]} 22. Bc3 {[%clk
0:01:40]} 22... Bxf3 {[%clk 0:02:14.6]} 23. Rxf3 {[%clk 0:01:26.9]} 23... Bb4
{[%clk 0:02:14.8]} 24. h3 {[%clk 0:01:11]} 24... Bxc3 {[%clk 0:02:07.5]} 25.
Rxc3 {[%clk 0:01:10.1]} 25... Rxb2 {[%clk 0:02:06.9]} 26. Rc6 {[%clk 0:01:01.6]}
26... g6 {[%clk 0:01:53.8]} 27. Rxa6 {[%clk 0:01:00.9]} 27... Rdd2 {[%clk
0:01:52]} 28. Rg1 {[%clk 0:01:00.4]} 28... Re2 {[%clk 0:01:52]} 29. Ra5 {[%clk
0:00:41.6]} 29... Ra2 {[%clk 0:01:45.8]} 30. Kh2 {[%clk 0:00:29.2]} 30... Kg7
{[%clk 0:01:31.3]} 31. Kg3 {[%clk 0:00:28.1]} 31... h5 {[%clk 0:01:29.4]} 32. h4
{[%clk 0:00:24]} 32... Ra3+ {[%clk 0:01:27]} 33. Kf4 {[%clk 0:00:20.4]} 33...
Rb2 {[%clk 0:01:14.1]} 34. Kg5 {[%clk 0:00:15.4]} 34... Rb4 {[%clk 0:01:05.9]}
35. g3 {[%clk 0:00:13.7]} 35... Rg4# {[%clk 0:01:04.1]} 0-1

[Event "Early-Titled-Tuesday-Blitz-April-23-2024"]
[Site "Chess.com"]
[Date "2024.04.23"]
[Round "11"]
[White "FaustinoOro"]
[Black "UK_23"]
[Result "1-0"]
[WhiteElo "2870"]
[BlackElo "2497"]
[TimeControl "180+1"]
[EndTime "10:10:26 PDT"]
[Termination "FaustinoOro won by resignation"]

1. e4 {[%clk 0:03:00.9]} 1... c5 {[%clk 0:02:57.5]} 2. Nf3 {[%clk 0:03:00.8]}
2... e6 {[%clk 0:02:57.3]} 3. g3 {[%clk 0:02:59.8]} 3... Nc6 {[%clk 0:02:57.3]}
4. Bg2 {[%clk 0:02:59.9]} 4... Nf6 {[%clk 0:02:55.2]} 5. Qe2 {[%clk 0:02:59.4]}
5... e5 {[%clk 0:02:55.3]} 6. O-O {[%clk 0:02:59.1]} 6... Be7 {[%clk 0:02:55.3]}
7. c3 {[%clk 0:02:58.9]} 7... O-O {[%clk 0:02:55.1]} 8. Rd1 {[%clk 0:02:57.5]}
8... Re8 {[%clk 0:02:53.9]} 9. Na3 {[%clk 0:02:55.4]} 9... d5 {[%clk 0:02:52.7]}
10. d3 {[%clk 0:02:54.3]} 10... Bf8 {[%clk 0:02:52.4]} 11. Bg5 {[%clk
0:02:50.9]} 11... Be6 {[%clk 0:02:52.5]} 12. Nc2 {[%clk 0:02:32.9]} 12... d4
{[%clk 0:02:49]} 13. c4 {[%clk 0:02:28.9]} 13... Rb8 {[%clk 0:02:45.5]} 14. b3
{[%clk 0:02:23]} 14... h6 {[%clk 0:02:44.4]} 15. Bd2 {[%clk 0:02:21.4]} 15... b5
{[%clk 0:02:43.5]} 16. cxb5 {[%clk 0:02:13.8]} 16... Rxb5 {[%clk 0:02:44.4]} 17.
Na3 {[%clk 0:02:13.4]} 17... Rb7 {[%clk 0:02:44.2]} 18. Rac1 {[%clk 0:02:11.9]}
18... Nd7 {[%clk 0:02:44.1]} 19. Nc4 {[%clk 0:02:09.5]} 19... f6 {[%clk
0:02:38.5]} 20. Nh4 {[%clk 0:02:06.5]} 20... Nb6 {[%clk 0:02:37.3]} 21. Na5
{[%clk 0:01:59.8]} 21... Nxa5 {[%clk 0:02:32.8]} 22. Bxa5 {[%clk 0:02:00.7]}
22... Qd7 {[%clk 0:02:33.1]} 23. Rf1 {[%clk 0:01:53.1]} 23... Bg4 {[%clk
0:02:32.5]} 24. Qc2 {[%clk 0:01:47.8]} 24... Rc8 {[%clk 0:02:28.5]} 25. f4
{[%clk 0:01:41.3]} 25... exf4 {[%clk 0:02:27]} 26. gxf4 {[%clk 0:01:42.2]} 26...
Rbb8 {[%clk 0:02:23.7]} 27. f5 {[%clk 0:01:33]} 27... Bh5 {[%clk 0:02:20.7]} 28.
Bf3 {[%clk 0:01:29.1]} 28... Qf7 {[%clk 0:02:15.7]} 29. Qe2 {[%clk 0:01:26.3]}
29... Bxf3 {[%clk 0:02:14.9]} 30. Qxf3 {[%clk 0:01:27.2]} 30... Bd6 {[%clk
0:02:15.4]} 31. Ng6 {[%clk 0:01:13.4]} 31... Nd7 {[%clk 0:02:10.5]} 32. Kh1
{[%clk 0:01:13.5]} 32... Ne5 {[%clk 0:02:10.8]} 33. Nxe5 {[%clk 0:01:13.5]}
33... Bxe5 {[%clk 0:02:10.1]} 34. Rg1 {[%clk 0:01:12.5]} 34... Rb7 {[%clk
0:02:10]} 35. Rg6 {[%clk 0:01:11.2]} 35... Kh8 {[%clk 0:01:50.4]} 36. Rcg1
{[%clk 0:01:08.1]} 36... Qg8 {[%clk 0:01:31.2]} 37. Bd2 {[%clk 0:01:00.8]} 37...
Qh7 {[%clk 0:01:30.4]} 38. Qh5 {[%clk 0:01:01.4]} 38... Rg8 {[%clk 0:01:26.4]}
39. Bxh6 {[%clk 0:00:47]} 39... a5 {[%clk 0:01:21.6]} 40. Qf3 {[%clk 0:00:29.4]}
40... gxh6 {[%clk 0:01:16.2]} 41. Rxg8+ {[%clk 0:00:29.3]} 41... Qxg8 {[%clk
0:01:17.1]} 42. Rxg8+ {[%clk 0:00:29.7]} 42... Kxg8 {[%clk 0:01:18]} 43. Qh5
{[%clk 0:00:29.1]} 43... a4 {[%clk 0:01:11.7]} 44. Qe8+ {[%clk 0:00:27.3]} 44...
Kg7 {[%clk 0:01:11]} 45. Qxa4 {[%clk 0:00:27.9]} 45... Kf7 {[%clk 0:01:06.8]}
46. Qc4+ {[%clk 0:00:25.7]} 46... Ke7 {[%clk 0:01:06.4]} 47. Qxc5+ {[%clk
0:00:25.5]} 1-0

[Event "Early-Titled-Tuesday-Blitz-April-23-2024"]
[Site "Chess.com"]
[Date "2024.04.23"]
[Round "11"]
[White "McCarthyStone"]
[Black "Chernov_Alexander_A"]
[Result "1-0"]
[WhiteElo "2417"]
[BlackElo "2275"]
[TimeControl "180+1"]
[EndTime "10:10:32 PDT"]
[Termination "McCarthyStone won on time"]

1. b3 {[%clk 0:03:00.9]} 1... e5 {[%clk 0:02:57.7]} 2. Bb2 {[%clk 0:03:01.8]}
2... Nc6 {[%clk 0:02:57.8]} 3. e3 {[%clk 0:03:02.4]} 3... Nf6 {[%clk 0:02:57.5]}
4. Bb5 {[%clk 0:03:02.6]} 4... Bd6 {[%clk 0:02:57.4]} 5. Na3 {[%clk 0:03:03.2]}
5... a6 {[%clk 0:02:56.4]} 6. Be2 {[%clk 0:03:01.8]} 6... Bc5 {[%clk 0:02:41.6]}
7. d4 {[%clk 0:02:57.1]} 7... exd4 {[%clk 0:02:40.1]} 8. exd4 {[%clk 0:02:58]}
8... Bb4+ {[%clk 0:02:38.7]} 9. c3 {[%clk 0:02:57.7]} 9... Be7 {[%clk
0:02:37.8]} 10. Nf3 {[%clk 0:02:57.7]} 10... O-O {[%clk 0:02:37]} 11. Nc4 {[%clk
0:02:58.3]} 11... Re8 {[%clk 0:02:35.7]} 12. O-O {[%clk 0:02:57.6]} 12... b5
{[%clk 0:02:35]} 13. Ne3 {[%clk 0:02:57.2]} 13... d6 {[%clk 0:02:34.5]} 14. d5
{[%clk 0:02:55.3]} 14... Ne5 {[%clk 0:02:30.5]} 15. Nxe5 {[%clk 0:02:55]} 15...
dxe5 {[%clk 0:02:31.4]} 16. c4 {[%clk 0:02:55.9]} 16... Bc5 {[%clk 0:02:14]} 17.
cxb5 {[%clk 0:02:49.2]} 17... Bxe3 {[%clk 0:01:44.2]} 18. fxe3 {[%clk
0:02:50.1]} 18... Nxd5 {[%clk 0:01:40.3]} 19. Bc4 {[%clk 0:02:50]} 19... Be6
{[%clk 0:01:35]} 20. Bxe5 {[%clk 0:02:40.1]} 20... Nxe3 {[%clk 0:01:21.5]} 21.
Qxd8 {[%clk 0:02:31]} 21... Raxd8 {[%clk 0:01:12]} 22. Bxc7 {[%clk 0:02:25.5]}
22... Rc8 {[%clk 0:00:48.1]} 23. b6 {[%clk 0:01:59.7]} 23... Bxc4 {[%clk
0:00:38.5]} 24. bxc4 {[%clk 0:01:58.4]} 24... Nxf1 {[%clk 0:00:34.4]} 25. Rxf1
{[%clk 0:01:56.8]} 25... Re7 {[%clk 0:00:34.1]} 26. Rd1 {[%clk 0:01:40.7]} 26...
h6 {[%clk 0:00:28.9]} 27. Rd8+ {[%clk 0:01:30.7]} 27... Rxd8 {[%clk 0:00:22.3]}
28. Bxd8 {[%clk 0:01:31.6]} 28... Rd7 {[%clk 0:00:20]} 29. Bc7 {[%clk
0:01:29.7]} 29... Rd1+ {[%clk 0:00:19.1]} 30. Kf2 {[%clk 0:01:29.6]} 30... Rb1
{[%clk 0:00:18.9]} 31. c5 {[%clk 0:01:28]} 31... Kf8 {[%clk 0:00:19.2]} 32. c6
{[%clk 0:01:28.1]} 32... Rb2+ {[%clk 0:00:15.7]} 33. Kf3 {[%clk 0:01:27.1]}
33... Rxa2 {[%clk 0:00:08.5]} 34. b7 {[%clk 0:01:27]} 34... Ra3+ {[%clk
0:00:04.7]} 35. Ke4 {[%clk 0:01:25.6]} 35... Rb3 {[%clk 0:00:04.6]} 36. b8=Q+
{[%clk 0:01:17.4]} 36... Rxb8 {[%clk 0:00:03.1]} 37. Bxb8 {[%clk 0:01:18.3]}
37... Ke7 {[%clk 0:00:02.5]} 38. Bc7 {[%clk 0:01:17.5]} 1-0

[Event "Early-Titled-Tuesday-Blitz-April-23-2024"]
[Site "Chess.com"]
[Date "2024.04.23"]
[Round "11"]
[White "ozates"]
[Black "Alexchess1984"]
[Result "0-1"]
[WhiteElo "2564"]
[BlackElo "2673"]
[TimeControl "180+1"]
[EndTime "10:10:34 PDT"]
[Termination "Alexchess1984 won by resignation"]

1. e4 {[%clk 0:02:50.9]} 1... e6 {[%clk 0:02:51.2]} 2. d4 {[%clk 0:02:47.4]}
2... d5 {[%clk 0:02:51.5]} 3. Nd2 {[%clk 0:02:48]} 3... Nf6 {[%clk 0:02:50.5]}
4. e5 {[%clk 0:02:47.7]} 4... Nfd7 {[%clk 0:02:50.8]} 5. f4 {[%clk 0:02:48.6]}
5... c5 {[%clk 0:02:51.1]} 6. c3 {[%clk 0:02:49.3]} 6... Nc6 {[%clk 0:02:49.8]}
7. Ndf3 {[%clk 0:02:47.3]} 7... Be7 {[%clk 0:02:47.4]} 8. Bd3 {[%clk 0:02:46.4]}
8... f5 {[%clk 0:02:45.5]} 9. exf6 {[%clk 0:02:43.4]} 9... Nxf6 {[%clk
0:02:44.8]} 10. Ne2 {[%clk 0:02:44.3]} 10... O-O {[%clk 0:02:42.5]} 11. O-O
{[%clk 0:02:43.7]} 11... Qb6 {[%clk 0:02:40.7]} 12. Kh1 {[%clk 0:02:40.7]} 12...
Bd7 {[%clk 0:02:39.1]} 13. dxc5 {[%clk 0:02:25.5]} 13... Bxc5 {[%clk 0:02:37.6]}
14. Bc2 {[%clk 0:02:21.1]} 14... Be8 {[%clk 0:02:25.9]} 15. Ne5 {[%clk
0:02:16.3]} 15... Bh5 {[%clk 0:02:19]} 16. Qe1 {[%clk 0:02:04.3]} 16... Nxe5
{[%clk 0:02:14.6]} 17. fxe5 {[%clk 0:02:03.8]} 17... Ng4 {[%clk 0:02:12.7]} 18.
Nf4 {[%clk 0:01:53.5]} 18... Nf2+ {[%clk 0:02:02.3]} 19. Rxf2 {[%clk 0:01:53.9]}
19... Bxf2 {[%clk 0:02:01.7]} 20. Qf1 {[%clk 0:01:54.1]} 20... Rxf4 {[%clk
0:01:57.2]} 21. Bxf4 {[%clk 0:01:52]} 21... Rf8 {[%clk 0:01:57]} 22. Bg3 {[%clk
0:01:29.9]} 22... Bxg3 {[%clk 0:01:55.6]} 23. Bxh7+ {[%clk 0:01:30.1]} 23...
Kxh7 {[%clk 0:01:53.8]} 24. Qxf8 {[%clk 0:01:30.5]} 24... Bxe5 {[%clk
0:01:51.3]} 25. Re1 {[%clk 0:01:25.9]} 25... Bf6 {[%clk 0:01:44.8]} 26. h3
{[%clk 0:01:19.4]} 26... Qf2 {[%clk 0:01:43.4]} 27. Rg1 {[%clk 0:01:14.2]} 27...
Qg3 {[%clk 0:01:39.7]} 28. Rf1 {[%clk 0:00:57.6]} 28... Be2 {[%clk 0:01:27]} 29.
Qe8 {[%clk 0:00:36.1]} 29... Qg6 {[%clk 0:01:06.9]} 30. Qxg6+ {[%clk 0:00:29.3]}
30... Kxg6 {[%clk 0:01:06.6]} 31. Re1 {[%clk 0:00:30.2]} 31... Bc4 {[%clk
0:01:04.4]} 32. b3 {[%clk 0:00:20]} 32... Ba6 {[%clk 0:00:58.5]} 33. Rxe6 {[%clk
0:00:20.9]} 33... Kf5 {[%clk 0:00:56.2]} 34. Rd6 {[%clk 0:00:20.7]} 34... Ke4
{[%clk 0:00:53.5]} 35. Rd7 {[%clk 0:00:18]} 35... Bxc3 {[%clk 0:00:52.1]} 36. g4
{[%clk 0:00:18.3]} 36... d4 {[%clk 0:00:49.9]} 37. Kg2 {[%clk 0:00:18.9]} 37...
d3 {[%clk 0:00:49.8]} 38. Kf2 {[%clk 0:00:19.2]} 38... d2 {[%clk 0:00:45.9]} 0-1

[Event "Early-Titled-Tuesday-Blitz-April-23-2024"]
[Site "Chess.com"]
[Date "2024.04.23"]
[Round "11"]
[White "rhwr"]
[Black "DonJuanEGenaro"]
[Result "1-0"]
[WhiteElo "2290"]
[BlackElo "2041"]
[TimeControl "180+1"]
[EndTime "10:10:35 PDT"]
[Termination "rhwr won on time"]

1. e4 {[%clk 0:03:00.9]} 1... c5 {[%clk 0:02:59.3]} 2. Nf3 {[%clk 0:02:59.6]}
2... Nc6 {[%clk 0:02:59.3]} 3. d4 {[%clk 0:03:00.2]} 3... cxd4 {[%clk
0:02:59.4]} 4. Nxd4 {[%clk 0:03:00.8]} 4... Nf6 {[%clk 0:02:58.3]} 5. Nc3 {[%clk
0:03:00.4]} 5... d6 {[%clk 0:02:58.4]} 6. Be2 {[%clk 0:02:56.4]} 6... e5 {[%clk
0:02:58.2]} 7. Nb3 {[%clk 0:02:55.1]} 7... Be7 {[%clk 0:02:57.8]} 8. O-O {[%clk
0:02:55.6]} 8... O-O {[%clk 0:02:57.6]} 9. Be3 {[%clk 0:02:56.1]} 9... a5 {[%clk
0:02:57.6]} 10. a4 {[%clk 0:02:55.6]} 10... Nb4 {[%clk 0:02:57.4]} 11. f4 {[%clk
0:02:47.2]} 11... Be6 {[%clk 0:02:56.5]} 12. f5 {[%clk 0:02:46.5]} 12... Bxb3
{[%clk 0:02:55.3]} 13. cxb3 {[%clk 0:02:47.4]} 13... d5 {[%clk 0:02:48.4]} 14.
exd5 {[%clk 0:02:46.3]} 14... Nfxd5 {[%clk 0:02:48.3]} 15. Bf2 {[%clk
0:02:37.5]} 15... Rc8 {[%clk 0:02:22]} 16. Bc4 {[%clk 0:02:36.8]} 16... Nf4
{[%clk 0:02:13.8]} 17. Ne4 {[%clk 0:02:22.9]} 17... Nfd3 {[%clk 0:02:01.7]} 18.
Qe2 {[%clk 0:02:01.2]} 18... Nf4 {[%clk 0:01:52.1]} 19. Qg4 {[%clk 0:01:54.8]}
19... h5 {[%clk 0:01:38.9]} 20. Qf3 {[%clk 0:01:44.5]} 20... Rxc4 {[%clk
0:01:36.8]} 21. bxc4 {[%clk 0:01:43.7]} 21... Qc7 {[%clk 0:01:31.5]} 22. b3
{[%clk 0:01:41.4]} 22... Rd8 {[%clk 0:01:28.9]} 23. Rad1 {[%clk 0:01:39.8]}
23... Nbd3 {[%clk 0:01:28.7]} 24. Be3 {[%clk 0:01:34.5]} 24... g5 {[%clk
0:01:05.3]} 25. fxg6 {[%clk 0:01:29.1]} 25... fxg6 {[%clk 0:01:05.3]} 26. g3
{[%clk 0:01:26.5]} 26... Nh3+ {[%clk 0:00:53.7]} 27. Kg2 {[%clk 0:01:24.9]}
27... Qc6 {[%clk 0:00:11.3]} 28. Kxh3 {[%clk 0:01:15.4]} 28... Rf8 {[%clk
0:00:08.3]} 29. Qg2 {[%clk 0:00:52.3]} 29... Qe6+ {[%clk 0:00:05]} 30. g4 {[%clk
0:00:51.6]} 30... hxg4+ {[%clk 0:00:02.9]} 31. Qxg4 {[%clk 0:00:49.5]} 1-0

[Event "Early-Titled-Tuesday-Blitz-April-23-2024"]
[Site "Chess.com"]
[Date "2024.04.23"]
[Round "11"]
[White "temiksmozg"]
[Black "Fandorine"]
[Result "1/2-1/2"]
[WhiteElo "2711"]
[BlackElo "2923"]
[TimeControl "180+1"]
[EndTime "10:10:36 PDT"]
[Termination "Game drawn by agreement"]

1. e4 {[%clk 0:03:00.9]} 1... c5 {[%clk 0:02:59.3]} 2. Nf3 {[%clk 0:03:00.6]}
2... e6 {[%clk 0:02:59.2]} 3. g3 {[%clk 0:02:58.6]} 3... d5 {[%clk 0:02:58.7]}
4. exd5 {[%clk 0:02:59.1]} 4... exd5 {[%clk 0:02:59.6]} 5. d4 {[%clk 0:02:59.7]}
5... cxd4 {[%clk 0:03:00.1]} 6. Nxd4 {[%clk 0:02:56.8]} 6... Nc6 {[%clk
0:03:00.6]} 7. Bg2 {[%clk 0:02:55.9]} 7... Bc5 {[%clk 0:02:52.3]} 8. c3 {[%clk
0:02:52.9]} 8... Nxd4 {[%clk 0:02:33.4]} 9. cxd4 {[%clk 0:02:52.5]} 9... Bb6
{[%clk 0:02:34.1]} 10. O-O {[%clk 0:02:49.1]} 10... Ne7 {[%clk 0:02:34.2]} 11.
Nc3 {[%clk 0:02:48.9]} 11... O-O {[%clk 0:02:34.4]} 12. Re1 {[%clk 0:02:46.6]}
12... Be6 {[%clk 0:02:21.7]} 13. Bg5 {[%clk 0:02:06.9]} 13... Re8 {[%clk
0:02:04.6]} 14. Qb3 {[%clk 0:01:12.6]} 14... Bxd4 {[%clk 0:01:56]} 15. Rad1
{[%clk 0:01:11.2]} 15... Bxc3 {[%clk 0:01:37]} 16. bxc3 {[%clk 0:01:11.3]} 16...
Qc7 {[%clk 0:01:34.8]} 17. Bxe7 {[%clk 0:00:59.7]} 17... Rxe7 {[%clk 0:01:35.7]}
18. Bxd5 {[%clk 0:00:59.7]} 18... Bxd5 {[%clk 0:01:27.6]} 19. Qxd5 {[%clk
0:00:59.8]} 19... Rxe1+ {[%clk 0:01:27.2]} 20. Rxe1 {[%clk 0:00:59.9]} 20... h6
{[%clk 0:01:21.3]} 21. c4 {[%clk 0:00:51.6]} 21... Rd8 {[%clk 0:01:19.3]} 22.
Qe4 {[%clk 0:00:48.4]} 22... b6 {[%clk 0:01:12.9]} 23. h4 {[%clk 0:00:48]} 23...
Rc8 {[%clk 0:01:09.5]} 24. Qd3 {[%clk 0:00:44]} 24... h5 {[%clk 0:00:58.2]} 25.
Re4 {[%clk 0:00:42.6]} 25... g6 {[%clk 0:00:55.6]} 26. Rd4 {[%clk 0:00:42.3]}
26... Re8 {[%clk 0:00:56.2]} 27. Rd7 {[%clk 0:00:38.7]} 27... Re1+ {[%clk
0:00:53.6]} 28. Kg2 {[%clk 0:00:35.3]} 28... Qc6+ {[%clk 0:00:49.5]} 29. Qd5
{[%clk 0:00:35.8]} 29... Qxd5+ {[%clk 0:00:27.3]} 30. cxd5 {[%clk 0:00:36.7]}
30... Rd1 {[%clk 0:00:24.5]} 1/2-1/2

[Event "Early-Titled-Tuesday-Blitz-April-23-2024"]
[Site "Chess.com"]
[Date "2024.04.23"]
[Round "11"]
[White "BallottiLuca"]
[Black "Sasha_Solovev_777"]
[Result "1-0"]
[WhiteElo "2387"]
[BlackElo "2239"]
[TimeControl "180+1"]
[EndTime "10:10:38 PDT"]
[Termination "BallottiLuca won by resignation"]

1. e4 {[%clk 0:03:00.9]} 1... c5 {[%clk 0:02:54]} 2. a3 {[%clk 0:03:00.2]} 2...
d5 {[%clk 0:02:52.5]} 3. exd5 {[%clk 0:02:57.7]} 3... Qxd5 {[%clk 0:02:53.4]} 4.
Nc3 {[%clk 0:02:55.9]} 4... Qd8 {[%clk 0:02:52.7]} 5. Nf3 {[%clk 0:02:55.7]}
5... Nc6 {[%clk 0:02:53]} 6. b4 {[%clk 0:02:54.4]} 6... e6 {[%clk 0:02:48.4]} 7.
bxc5 {[%clk 0:02:53.4]} 7... Bxc5 {[%clk 0:02:49.3]} 8. Bb5 {[%clk 0:02:52]}
8... Ne7 {[%clk 0:02:48.2]} 9. d4 {[%clk 0:02:40.2]} 9... Bb6 {[%clk 0:02:42.3]}
10. O-O {[%clk 0:02:36.7]} 10... O-O {[%clk 0:02:41.4]} 11. Be3 {[%clk
0:02:20.6]} 11... Nf5 {[%clk 0:02:38.4]} 12. Bxc6 {[%clk 0:02:20.5]} 12... bxc6
{[%clk 0:02:33.6]} 13. Ne4 {[%clk 0:02:17]} 13... Qd5 {[%clk 0:02:06]} 14. Qd3
{[%clk 0:02:08.4]} 14... Nxe3 {[%clk 0:01:41.1]} 15. fxe3 {[%clk 0:02:05.2]}
15... a5 {[%clk 0:01:13.9]} 16. c4 {[%clk 0:02:04.8]} 16... Ba6 {[%clk
0:01:13.6]} 17. Neg5 {[%clk 0:01:26.5]} 17... g6 {[%clk 0:00:56.3]} 18. cxd5
{[%clk 0:01:25.8]} 18... Bxd3 {[%clk 0:00:55.7]} 19. Rfd1 {[%clk 0:01:24.5]}
19... Be2 {[%clk 0:00:50]} 20. Rdb1 {[%clk 0:01:24.2]} 20... Rab8 {[%clk
0:00:30.5]} 21. dxc6 {[%clk 0:01:22.8]} 21... h6 {[%clk 0:00:29.8]} 22. Ne4
{[%clk 0:01:22.5]} 22... Bd3 {[%clk 0:00:28.1]} 23. Nf6+ {[%clk 0:01:17]} 23...
Kg7 {[%clk 0:00:28.1]} 24. Nd7 {[%clk 0:01:06.9]} 24... Bxb1 {[%clk 0:00:25.5]}
25. Nxb8 {[%clk 0:01:02.9]} 25... Rxb8 {[%clk 0:00:18.3]} 26. Rxb1 {[%clk
0:01:02]} 26... Bc7 {[%clk 0:00:17.4]} 27. Rxb8 {[%clk 0:00:53.5]} 27... Bxb8
{[%clk 0:00:18.3]} 28. Ne5 {[%clk 0:00:51]} 28... Bc7 {[%clk 0:00:15.4]} 29. Nd7
{[%clk 0:00:43.6]} 29... f5 {[%clk 0:00:13]} 30. Nc5 {[%clk 0:00:41.7]} 30...
Kf7 {[%clk 0:00:12.5]} 31. Na6 {[%clk 0:00:38.5]} 31... Bd6 {[%clk 0:00:11.8]}
32. c7 {[%clk 0:00:38.3]} 1-0